[Event "*** Titled Tuesday Blitz"]
[Site "Chess.com"]
[Date "2019.04.02"]
[Round "1"]
[White "nochewycandy"]
[Black "JonahWillow"]
[Result "0-1"]
[WhiteElo "2362"]
[BlackElo "2682"]
[TimeControl "180+2"]
[EndTime "14:07:57 PDT"]
[Termination "JonahWillow won by resignation"]

1. e4 {[%clk 0:03:01.9]} 1... c5 {[%clk 0:03:00.8]} 2. Nf3 {[%clk 0:03:00.7]}
2... e6 {[%clk 0:03:02.3]} 3. b3 {[%clk 0:03:01.4]} 3... b6 {[%clk 0:02:48.9]}
4. c4 {[%clk 0:02:56.2]} 4... Bb7 {[%clk 0:02:44.3]} 5. Nc3 {[%clk 0:02:56.4]}
5... Nc6 {[%clk 0:02:43.7]} 6. d4 {[%clk 0:02:54.6]} 6... cxd4 {[%clk
0:02:40.9]} 7. Nxd4 {[%clk 0:02:56.5]} 7... Bb4 {[%clk 0:02:36.8]} 8. Bb2 {[%clk
0:02:38.1]} 8... Nf6 {[%clk 0:02:35.9]} 9. a3 {[%clk 0:02:06.9]} 9... Bxc3+
{[%clk 0:02:04.7]} 10. Bxc3 {[%clk 0:02:08.8]} 10... Nxe4 {[%clk 0:02:05.4]} 11.
Bb2 {[%clk 0:01:57.7]} 11... O-O {[%clk 0:02:03.3]} 12. Bd3 {[%clk 0:01:47.7]}
12... Nc5 {[%clk 0:01:35]} 13. Bc2 {[%clk 0:01:43.2]} 13... Nxd4 {[%clk
0:01:31.8]} 14. Qxd4 {[%clk 0:01:42.7]} 14... Qg5 {[%clk 0:01:30.2]} 15. h4
{[%clk 0:01:33.8]} 15... Qh6 {[%clk 0:01:14.8]} 16. Bc1 {[%clk 0:00:37.7]} 16...
Qf6 {[%clk 0:01:11.8]} 17. Qxf6 {[%clk 0:00:38]} 17... gxf6 {[%clk 0:01:13.7]}
18. Bb2 {[%clk 0:00:39.1]} 18... e5 {[%clk 0:01:08.3]} 19. f3 {[%clk 0:00:40.3]}
19... d5 {[%clk 0:01:05.8]} 20. cxd5 {[%clk 0:00:40.3]} 20... Bxd5 {[%clk
0:01:07.7]} 21. b4 {[%clk 0:00:42.2]} 21... Ne6 {[%clk 0:00:53.6]} 22. O-O-O
{[%clk 0:00:37.8]} 22... Nf4 {[%clk 0:00:48.3]} 23. Kb1 {[%clk 0:00:31.2]} 23...
Be6 {[%clk 0:00:46]} 24. g3 {[%clk 0:00:29.9]} 24... Nd5 {[%clk 0:00:46.9]} 25.
f4 {[%clk 0:00:31.2]} 25... Ne3 {[%clk 0:00:41.8]} 26. Rdg1 {[%clk 0:00:21.9]}
26... Nxc2 {[%clk 0:00:39.7]} 27. Kxc2 {[%clk 0:00:23.8]} 27... Rac8+ {[%clk
0:00:41]} 28. Kb1 {[%clk 0:00:24.3]} 28... Bf5+ {[%clk 0:00:38.2]} 29. Ka1
{[%clk 0:00:24.9]} 29... Rc2 {[%clk 0:00:36.5]} 30. g4 {[%clk 0:00:24.7]} 30...
Be4 {[%clk 0:00:35.7]} 31. Rh3 {[%clk 0:00:26.4]} 31... Rd8 {[%clk 0:00:32.3]}
32. fxe5 {[%clk 0:00:25.7]} 32... Rdd2 {[%clk 0:00:31.8]} 33. Rb3 {[%clk
0:00:23.6]} 33... Bd5 {[%clk 0:00:31.2]} 34. Rc3 {[%clk 0:00:21.3]} 34... Rxb2
{[%clk 0:00:22.3]} 35. exf6 {[%clk 0:00:21.7]} 35... Be6 {[%clk 0:00:21.1]} 36.
Rgc1 {[%clk 0:00:22.2]} 36... Ra2+ {[%clk 0:00:22.3]} 0-1

[Event "*** Titled Tuesday Blitz"]
[Site "Chess.com"]
[Date "2019.04.02"]
[Round "1"]
[White "carlovittorino"]
[Black "nabukatnezarr"]
[Result "0-1"]
[WhiteElo "2232"]
[BlackElo "2571"]
[TimeControl "180+2"]
[EndTime "14:07:57 PDT"]
[Termination "nabukatnezarr won by resignation"]

1. d4 {[%clk 0:02:59.1]} 1... Nf6 {[%clk 0:03:00.8]} 2. c4 {[%clk 0:02:59.9]}
2... g6 {[%clk 0:03:02.2]} 3. Nc3 {[%clk 0:03:00.5]} 3... Bg7 {[%clk 0:03:04.1]}
4. g3 {[%clk 0:03:01.9]} 4... O-O {[%clk 0:03:06]} 5. Bg2 {[%clk 0:03:03.1]}
5... c5 {[%clk 0:03:07.7]} 6. Nf3 {[%clk 0:03:04.2]} 6... Na6 {[%clk 0:03:07.3]}
7. O-O {[%clk 0:03:04.7]} 7... d6 {[%clk 0:03:08.3]} 8. b3 {[%clk 0:03:02.2]}
8... cxd4 {[%clk 0:03:04.3]} 9. Nxd4 {[%clk 0:03:02.9]} 9... Nc5 {[%clk
0:03:02.1]} 10. Bb2 {[%clk 0:03:03.5]} 10... a5 {[%clk 0:03:01.8]} 11. Qd2
{[%clk 0:02:55.9]} 11... Bd7 {[%clk 0:03:02.8]} 12. Rfd1 {[%clk 0:02:56.8]}
12... a4 {[%clk 0:03:00]} 13. b4 {[%clk 0:02:32.1]} 13... a3 {[%clk 0:03:01]}
14. Bc1 {[%clk 0:02:32.9]} 14... Ne6 {[%clk 0:02:52.2]} 15. Bxb7 {[%clk
0:02:23.5]} 15... Rb8 {[%clk 0:02:43.5]} 16. Nc6 {[%clk 0:02:11.1]} 16... Bxc6
{[%clk 0:02:44.1]} 17. Bxc6 {[%clk 0:02:12.9]} 17... Rxb4 {[%clk 0:02:45.8]} 18.
Bxa3 {[%clk 0:02:02.2]} 18... Rxc4 {[%clk 0:02:45.8]} 19. Bb5 {[%clk 0:02:03.1]}
19... Rxc3 {[%clk 0:02:20.7]} 20. Qxc3 {[%clk 0:02:02.6]} 20... Ne4 {[%clk
0:02:13.7]} 21. Qe3 {[%clk 0:01:57.4]} 21... Nc3 {[%clk 0:02:09.1]} 22. Bc4
{[%clk 0:01:50.2]} 22... d5 {[%clk 0:01:55.5]} 23. Bb3 {[%clk 0:01:33.8]} 23...
Qa8 {[%clk 0:01:31.2]} 24. Bb4 {[%clk 0:00:57.9]} 24... d4 {[%clk 0:01:27.5]}
25. Qd3 {[%clk 0:00:49.6]} 25... Ng5 {[%clk 0:01:12.6]} 26. f3 {[%clk
0:00:41.6]} 26... Nxd1 {[%clk 0:00:44.3]} 27. Rxd1 {[%clk 0:00:42.9]} 27... Re8
{[%clk 0:00:45.9]} 28. h4 {[%clk 0:00:35.7]} 28... Qb8 {[%clk 0:00:35.7]} 29.
Be1 {[%clk 0:00:29.8]} 29... Ne6 {[%clk 0:00:27.8]} 30. Bxe6 {[%clk 0:00:30.4]}
30... fxe6 {[%clk 0:00:29.7]} 31. Qxd4 {[%clk 0:00:31.8]} 31... Bxd4+ {[%clk
0:00:30.2]} 0-1

[Event "*** Titled Tuesday Blitz"]
[Site "Chess.com"]
[Date "2019.04.02"]
[Round "1"]
[White "Zhuu96"]
[Black "Chessialist"]
[Result "1/2-1/2"]
[WhiteElo "2958"]
[BlackElo "2505"]
[TimeControl "180+2"]
[EndTime "14:07:58 PDT"]
[Termination "Game drawn by agreement"]

1. e4 {[%clk 0:02:59.5]} 1... c5 {[%clk 0:03:01.1]} 2. Nf3 {[%clk 0:02:57.8]}
2... Nc6 {[%clk 0:03:01]} 3. Nc3 {[%clk 0:02:57.5]} 3... e6 {[%clk 0:03:01.1]}
4. d4 {[%clk 0:02:58.3]} 4... cxd4 {[%clk 0:03:02.4]} 5. Nxd4 {[%clk 0:03:00]}
5... a6 {[%clk 0:03:04.1]} 6. Be3 {[%clk 0:03:01.4]} 6... Qc7 {[%clk 0:03:04.7]}
7. a3 {[%clk 0:03:02.6]} 7... Nf6 {[%clk 0:03:04]} 8. f4 {[%clk 0:02:57.5]} 8...
d6 {[%clk 0:03:05.1]} 9. Qf3 {[%clk 0:02:57.4]} 9... Be7 {[%clk 0:03:06.1]} 10.
O-O-O {[%clk 0:02:57]} 10... Bd7 {[%clk 0:03:07.3]} 11. Be2 {[%clk 0:02:52.7]}
11... Nxd4 {[%clk 0:03:06.5]} 12. Bxd4 {[%clk 0:02:53.6]} 12... Bc6 {[%clk
0:03:08]} 13. g4 {[%clk 0:02:50.5]} 13... O-O {[%clk 0:03:08.1]} 14. g5 {[%clk
0:02:51.5]} 14... Nd7 {[%clk 0:03:09.2]} 15. Rhg1 {[%clk 0:02:49.3]} 15... e5
{[%clk 0:02:25.2]} 16. Bf2 {[%clk 0:02:49.9]} 16... exf4 {[%clk 0:02:23.6]} 17.
h4 {[%clk 0:02:49.9]} 17... Ne5 {[%clk 0:02:24.5]} 18. Qxf4 {[%clk 0:02:50.9]}
18... b5 {[%clk 0:02:25.2]} 19. h5 {[%clk 0:02:43.4]} 19... Rab8 {[%clk
0:02:17.4]} 20. Qd2 {[%clk 0:02:38.9]} 20... a5 {[%clk 0:02:12.5]} 21. Nd5
{[%clk 0:02:39.5]} 21... Bxd5 {[%clk 0:02:13.6]} 22. Qxd5 {[%clk 0:02:38.1]}
22... Rfc8 {[%clk 0:02:09.5]} 23. Rd2 {[%clk 0:02:38.8]} 23... Qc6 {[%clk
0:02:07.3]} 24. Qxc6 {[%clk 0:02:37.3]} 24... Rxc6 {[%clk 0:02:09.2]} 25. Kb1
{[%clk 0:02:37.4]} 25... b4 {[%clk 0:02:09.4]} 26. a4 {[%clk 0:02:38.4]} 26...
g6 {[%clk 0:01:59.3]} 27. Rd5 {[%clk 0:02:32.4]} 27... Ra8 {[%clk 0:01:50]} 28.
Bd4 {[%clk 0:02:29.1]} 28... Bf8 {[%clk 0:01:42]} 29. hxg6 {[%clk 0:02:27.3]}
29... hxg6 {[%clk 0:01:42]} 30. Bb5 {[%clk 0:02:25.7]} 30... Rcc8 {[%clk
0:01:41.3]} 31. Rh1 {[%clk 0:02:24.9]} 31... Bg7 {[%clk 0:01:33.1]} 32. Rxd6
{[%clk 0:02:25]} 32... Nc4 {[%clk 0:01:34.3]} 33. Bxg7 {[%clk 0:02:22.8]} 33...
Kxg7 {[%clk 0:01:36.2]} 34. Rd3 {[%clk 0:02:15.2]} 34... Ne5 {[%clk 0:01:24.8]}
35. Rdh3 {[%clk 0:02:12.2]} 35... Kf8 {[%clk 0:01:25.9]} 36. Rd1 {[%clk
0:02:10.7]} 36... Ke7 {[%clk 0:01:24.9]} 37. Rd5 {[%clk 0:02:11.6]} 37... Ke6
{[%clk 0:01:21.8]} 38. Rh1 {[%clk 0:02:12.3]} 38... Rd8 {[%clk 0:01:18.3]} 39.
Rhd1 {[%clk 0:02:12.4]} 39... Rxd5 {[%clk 0:01:19.5]} 40. Rxd5 {[%clk
0:02:12.9]} 40... Ra7 {[%clk 0:01:13.7]} 41. Be2 {[%clk 0:02:13.2]} 41... f6
{[%clk 0:01:04.8]} 42. gxf6 {[%clk 0:02:13]} 42... Kxf6 {[%clk 0:01:06.7]} 43.
Kc1 {[%clk 0:02:14.3]} 43... g5 {[%clk 0:01:05.7]} 44. Kd2 {[%clk 0:02:15.6]}
44... g4 {[%clk 0:01:05.4]} 45. Ke3 {[%clk 0:02:16.7]} 45... Rc7 {[%clk
0:01:05.6]} 46. Bd3 {[%clk 0:02:12.4]} 46... g3 {[%clk 0:01:02.6]} 47. Rxa5
{[%clk 0:01:55.2]} 47... g2 {[%clk 0:00:55]} 48. Kf2 {[%clk 0:01:55.1]} 48... b3
{[%clk 0:00:46.4]} 49. Kxg2 {[%clk 0:01:48.8]} 49... bxc2 {[%clk 0:00:46.5]} 50.
Bxc2 {[%clk 0:01:49.8]} 50... Rxc2+ {[%clk 0:00:47.6]} 51. Kg3 {[%clk
0:01:51.5]} 51... Rxb2 {[%clk 0:00:48.2]} 52. Rb5 {[%clk 0:01:49.6]} 52... Rxb5
{[%clk 0:00:35]} 53. axb5 {[%clk 0:01:50.3]} 53... Ke6 {[%clk 0:00:36.9]} 54. b6
{[%clk 0:01:50.3]} 1/2-1/2

[Event "*** Titled Tuesday Blitz"]
[Site "Chess.com"]
[Date "2019.04.02"]
[Round "1"]
[White "guillembaches"]
[Black "Cruel_Yaro"]
[Result "0-1"]
[WhiteElo "2337"]
[BlackElo "2654"]
[TimeControl "180+2"]
[EndTime "14:08:00 PDT"]
[Termination "Cruel_Yaro won by resignation"]

1. e4 {[%clk 0:03:01.9]} 1... c5 {[%clk 0:02:58.1]} 2. Nf3 {[%clk 0:03:03.1]}
2... d6 {[%clk 0:02:58.9]} 3. d4 {[%clk 0:03:03.7]} 3... cxd4 {[%clk 0:03:00]}
4. Qxd4 {[%clk 0:03:04.8]} 4... a6 {[%clk 0:03:00.6]} 5. Be2 {[%clk 0:03:04.5]}
5... Nc6 {[%clk 0:03:01.4]} 6. Qe3 {[%clk 0:03:05.6]} 6... g6 {[%clk 0:03:02.4]}
7. h3 {[%clk 0:03:05.5]} 7... Bg7 {[%clk 0:03:03.7]} 8. c4 {[%clk 0:03:06]} 8...
Nf6 {[%clk 0:03:04.9]} 9. Nc3 {[%clk 0:03:06.9]} 9... O-O {[%clk 0:03:06.3]} 10.
O-O {[%clk 0:03:08.1]} 10... Nd7 {[%clk 0:03:06.7]} 11. Rd1 {[%clk 0:03:09]}
11... b6 {[%clk 0:03:06.7]} 12. b3 {[%clk 0:03:03.7]} 12... Bb7 {[%clk
0:03:02.7]} 13. Bb2 {[%clk 0:03:03.2]} 13... Rc8 {[%clk 0:03:00.8]} 14. Rab1
{[%clk 0:02:58.7]} 14... Nc5 {[%clk 0:02:55.6]} 15. Nd5 {[%clk 0:02:55.9]} 15...
e6 {[%clk 0:02:43.6]} 16. Bxg7 {[%clk 0:02:52.1]} 16... Kxg7 {[%clk 0:02:45.5]}
17. Nf4 {[%clk 0:02:29.4]} 17... Qe7 {[%clk 0:02:15]} 18. e5 {[%clk 0:01:58.6]}
18... dxe5 {[%clk 0:02:10.4]} 19. Nxe5 {[%clk 0:01:58.6]} 19... Nxe5 {[%clk
0:02:08.2]} 20. Qxe5+ {[%clk 0:02:00.5]} 20... Qf6 {[%clk 0:02:09.2]} 21. Qxf6+
{[%clk 0:01:54.7]} 21... Kxf6 {[%clk 0:02:11.1]} 22. Rd6 {[%clk 0:01:53.6]}
22... Ke5 {[%clk 0:02:04.5]} 23. Rxb6 {[%clk 0:01:44.9]} 23... Kxf4 {[%clk
0:02:05.2]} 24. b4 {[%clk 0:01:46.2]} 24... Be4 {[%clk 0:02:05]} 25. Rd1 {[%clk
0:01:20.7]} 25... Na4 {[%clk 0:02:04.8]} 26. Rxa6 {[%clk 0:01:13.6]} 26... Nc3
{[%clk 0:02:05.6]} 27. Rd2 {[%clk 0:01:14.7]} 27... Nxe2+ {[%clk 0:02:05.2]} 28.
Rxe2 {[%clk 0:01:16.2]} 28... Bd3 {[%clk 0:01:59.4]} 29. Re3 {[%clk 0:01:11.6]}
29... Bxc4 {[%clk 0:01:59.9]} 30. Ra5 {[%clk 0:01:12.5]} 30... Bd5 {[%clk
0:02:00.1]} 31. b5 {[%clk 0:01:00.8]} 31... Rc1+ {[%clk 0:01:59.3]} 32. Kh2
{[%clk 0:01:01.3]} 32... Rc2 {[%clk 0:02:00.7]} 33. Ra4+ {[%clk 0:00:57.7]}
33... Kg5 {[%clk 0:02:00.3]} 34. Kg3 {[%clk 0:00:55.3]} 34... Rb2 {[%clk
0:01:53.5]} 35. Rg4+ {[%clk 0:00:47.9]} 35... Kf6 {[%clk 0:01:53.7]} 36. a4
{[%clk 0:00:49.4]} 36... Rc8 {[%clk 0:01:49.1]} 37. h4 {[%clk 0:00:46.2]} 37...
h6 {[%clk 0:01:39.4]} 38. Rf4+ {[%clk 0:00:46.4]} 38... Kg7 {[%clk 0:01:39.9]}
39. Ra3 {[%clk 0:00:46.1]} 39... g5 {[%clk 0:01:40.7]} 40. hxg5 {[%clk
0:00:46.7]} 40... hxg5 {[%clk 0:01:42.6]} 41. Rd4 {[%clk 0:00:47.3]} 41... Rcc2
{[%clk 0:01:41.2]} 42. a5 {[%clk 0:00:42.2]} 42... Rxb5 {[%clk 0:01:40.6]} 43.
a6 {[%clk 0:00:43]} 43... Rc8 {[%clk 0:01:39]} 44. a7 {[%clk 0:00:43.9]} 44...
Ra8 {[%clk 0:01:39.8]} 45. Rda4 {[%clk 0:00:42.3]} 45... Rb7 {[%clk 0:01:40.3]}
46. Ra6 {[%clk 0:00:43.1]} 46... f5 {[%clk 0:01:36.8]} 47. f3 {[%clk 0:00:44.3]}
47... Kf6 {[%clk 0:01:36.4]} 48. Kf2 {[%clk 0:00:45.4]} 48... f4 {[%clk
0:01:37.2]} 49. R3a5 {[%clk 0:00:46.5]} 49... Ke5 {[%clk 0:01:37.4]} 50. Ra3
{[%clk 0:00:44.8]} 50... Rb2+ {[%clk 0:01:37.6]} 51. Ke1 {[%clk 0:00:45.9]}
51... Rxg2 {[%clk 0:01:36.6]} 52. Rb6 {[%clk 0:00:45.1]} 52... Rh2 {[%clk
0:01:34.5]} 53. Rb8 {[%clk 0:00:46]} 53... Rh8 {[%clk 0:01:35.2]} 54. Rxh8
{[%clk 0:00:35.4]} 54... Rxh8 {[%clk 0:01:33.7]} 55. Ra5 {[%clk 0:00:36.6]}
55... Kd4 {[%clk 0:01:33]} 0-1

[Event "*** Titled Tuesday Blitz"]
[Site "Chess.com"]
[Date "2019.04.02"]
[Round "1"]
[White "Chess_for_enjoy"]
[Black "Walter_White_Poland"]
[Result "0-1"]
[WhiteElo "2529"]
[BlackElo "2220"]
[TimeControl "180+2"]
[EndTime "14:08:01 PDT"]
[Termination "Walter_White_Poland won by resignation"]

1. d4 {[%clk 0:03:00.4]} 1... Nf6 {[%clk 0:02:59.9]} 2. c4 {[%clk 0:03:01.3]}
2... c5 {[%clk 0:03:01.1]} 3. d5 {[%clk 0:03:02.1]} 3... e6 {[%clk 0:03:02]} 4.
Nc3 {[%clk 0:03:02.5]} 4... exd5 {[%clk 0:03:03.1]} 5. cxd5 {[%clk 0:03:04.4]}
5... d6 {[%clk 0:03:04.5]} 6. e4 {[%clk 0:03:04.9]} 6... g6 {[%clk 0:03:05.6]}
7. f4 {[%clk 0:03:05.6]} 7... Bg7 {[%clk 0:03:06.4]} 8. Bb5+ {[%clk 0:03:06.6]}
8... Nfd7 {[%clk 0:03:07.5]} 9. Bd3 {[%clk 0:03:07.1]} 9... Qh4+ {[%clk
0:02:51.8]} 10. g3 {[%clk 0:03:06.4]} 10... Qe7 {[%clk 0:02:52.7]} 11. Nf3
{[%clk 0:03:07.1]} 11... c4 {[%clk 0:01:41.2]} 12. Bxc4 {[%clk 0:02:54]} 12...
Bxc3+ {[%clk 0:01:17.3]} 13. bxc3 {[%clk 0:02:55.9]} 13... Qxe4+ {[%clk
0:01:18.3]} 14. Be2 {[%clk 0:02:56.3]} 14... Nb6 {[%clk 0:00:47.1]} 15. O-O
{[%clk 0:02:54.4]} 15... Qxd5 {[%clk 0:00:47.6]} 16. Qc2 {[%clk 0:02:52.8]}
16... O-O {[%clk 0:00:38.4]} 17. c4 {[%clk 0:02:27.8]} 17... Bf5 {[%clk
0:00:36.5]} 18. Qc3 {[%clk 0:02:20.2]} 18... Na4 {[%clk 0:00:33.2]} 19. Qb4
{[%clk 0:02:01.6]} 19... Qc5+ {[%clk 0:00:32.9]} 20. Qxc5 {[%clk 0:02:02]} 20...
Nxc5 {[%clk 0:00:34]} 21. Bb2 {[%clk 0:01:52.5]} 21... Nc6 {[%clk 0:00:34.2]}
22. Rfd1 {[%clk 0:01:48]} 22... Rfe8 {[%clk 0:00:33.4]} 23. Kf1 {[%clk 0:01:45]}
23... Ne4 {[%clk 0:00:27.6]} 24. Bd3 {[%clk 0:01:33.3]} 24... Bg4 {[%clk
0:00:23.4]} 25. Kg2 {[%clk 0:01:31.9]} 25... Nc5 {[%clk 0:00:21.4]} 26. h3
{[%clk 0:01:27.6]} 26... Nxd3 {[%clk 0:00:22.2]} 27. Rxd3 {[%clk 0:01:27.9]}
27... Re2+ {[%clk 0:00:22.6]} 28. Kf1 {[%clk 0:01:23.5]} 28... Bxf3 {[%clk
0:00:24.5]} 29. Ba3 {[%clk 0:01:19.9]} 29... Rh2 {[%clk 0:00:20.8]} 30. Re1
{[%clk 0:01:04.3]} 30... Rh1+ {[%clk 0:00:21.1]} 31. Kf2 {[%clk 0:01:06.2]}
31... Rxe1 {[%clk 0:00:21.9]} 32. Kxe1 {[%clk 0:01:08.1]} 32... Re8+ {[%clk
0:00:22.9]} 33. Kf2 {[%clk 0:01:09.3]} 33... Be4 {[%clk 0:00:19]} 34. Rxd6
{[%clk 0:01:09.5]} 34... Rd8 {[%clk 0:00:18.9]} 35. Ke3 {[%clk 0:01:03]} 35...
Rxd6 {[%clk 0:00:19.4]} 36. Bxd6 {[%clk 0:01:04.9]} 36... Bb1 {[%clk 0:00:20.5]}
37. a3 {[%clk 0:01:05.4]} 37... f5 {[%clk 0:00:21.5]} 38. g4 {[%clk 0:01:03.3]}
38... Kf7 {[%clk 0:00:21.7]} 39. Bc5 {[%clk 0:01:01.8]} 39... fxg4 {[%clk
0:00:21]} 40. hxg4 {[%clk 0:01:03.7]} 40... h5 {[%clk 0:00:21]} 41. gxh5 {[%clk
0:01:05.6]} 41... gxh5 {[%clk 0:00:22.1]} 42. Kf2 {[%clk 0:01:07.5]} 42... Bd3
{[%clk 0:00:21.6]} 43. Kg3 {[%clk 0:01:07.8]} 43... Bxc4 {[%clk 0:00:22.4]} 44.
Kh4 {[%clk 0:01:09.4]} 44... Kg6 {[%clk 0:00:23.6]} 45. Be3 {[%clk 0:01:08.5]}
45... Be6 {[%clk 0:00:23.6]} 46. Bc1 {[%clk 0:01:09.8]} 46... Bg4 {[%clk
0:00:24.4]} 0-1

[Event "*** Titled Tuesday Blitz"]
[Site "Chess.com"]
[Date "2019.04.02"]
[Round "1"]
[White "wonderfultime"]
[Black "rubhani"]
[Result "1-0"]
[WhiteElo "2913"]
[BlackElo "2490"]
[TimeControl "180+2"]
[EndTime "14:08:02 PDT"]
[Termination "wonderfultime won by resignation"]

1. d4 {[%clk 0:02:47.7]} 1... Nf6 {[%clk 0:03:00.4]} 2. Nf3 {[%clk 0:02:45]}
2... e6 {[%clk 0:03:00.7]} 3. Bf4 {[%clk 0:02:43.9]} 3... c5 {[%clk 0:03:00]} 4.
c3 {[%clk 0:02:44.3]} 4... Nc6 {[%clk 0:03:01.1]} 5. e3 {[%clk 0:02:44.6]} 5...
b6 {[%clk 0:03:02.2]} 6. Bd3 {[%clk 0:02:44.3]} 6... Bb7 {[%clk 0:03:03.3]} 7.
Nbd2 {[%clk 0:02:42]} 7... Be7 {[%clk 0:02:40.6]} 8. h3 {[%clk 0:02:41.3]} 8...
O-O {[%clk 0:02:41.6]} 9. O-O {[%clk 0:02:41.7]} 9... cxd4 {[%clk 0:02:36.5]}
10. exd4 {[%clk 0:02:41.3]} 10... d6 {[%clk 0:02:37.5]} 11. Re1 {[%clk
0:02:40.8]} 11... Re8 {[%clk 0:02:38.6]} 12. Bh2 {[%clk 0:02:40.9]} 12... Bf8
{[%clk 0:02:39.4]} 13. a4 {[%clk 0:02:41.7]} 13... Rc8 {[%clk 0:02:24.8]} 14.
Nc4 {[%clk 0:02:29]} 14... g6 {[%clk 0:01:25.3]} 15. Qb3 {[%clk 0:02:16.2]}
15... Ba6 {[%clk 0:01:24.9]} 16. Rad1 {[%clk 0:02:05.8]} 16... Bxc4 {[%clk
0:01:16.5]} 17. Qxc4 {[%clk 0:02:05]} 17... d5 {[%clk 0:01:16.4]} 18. Qa6 {[%clk
0:02:01.6]} 18... Bd6 {[%clk 0:01:17.1]} 19. Ne5 {[%clk 0:01:58.7]} 19... Qc7
{[%clk 0:01:15.2]} 20. Qb5 {[%clk 0:01:59.4]} 20... Nd7 {[%clk 0:01:09.5]} 21.
f4 {[%clk 0:01:30.9]} 21... f5 {[%clk 0:01:02.8]} 22. Bg3 {[%clk 0:01:19.3]}
22... Ncxe5 {[%clk 0:00:54.4]} 23. fxe5 {[%clk 0:01:19]} 23... Be7 {[%clk
0:00:54.4]} 24. Ra1 {[%clk 0:01:14.8]} 24... Ra8 {[%clk 0:00:53.8]} 25. c4
{[%clk 0:01:13.6]} 25... Qb7 {[%clk 0:00:21.1]} 26. cxd5 {[%clk 0:01:12.2]}
26... Qxd5 {[%clk 0:00:22.4]} 27. Qxd5 {[%clk 0:01:13.2]} 27... exd5 {[%clk
0:00:24.3]} 28. Bb5 {[%clk 0:01:15.1]} 28... Red8 {[%clk 0:00:25.3]} 29. Bc6
{[%clk 0:01:10.3]} 29... Rac8 {[%clk 0:00:25.5]} 30. Bxd5+ {[%clk 0:01:10.9]}
30... Kg7 {[%clk 0:00:27.4]} 31. Rac1 {[%clk 0:01:03.2]} 31... Rxc1 {[%clk
0:00:23.8]} 32. Rxc1 {[%clk 0:01:05.1]} 32... Nf8 {[%clk 0:00:14.9]} 33. Rc7
{[%clk 0:00:57.7]} 33... Rxd5 {[%clk 0:00:16.1]} 34. Rxe7+ {[%clk 0:00:59]}
34... Kg8 {[%clk 0:00:15]} 35. e6 {[%clk 0:00:52.7]} 35... Rxd4 {[%clk
0:00:15.9]} 36. Be5 {[%clk 0:00:54]} 36... Re4 {[%clk 0:00:16.5]} 37. Rg7+
{[%clk 0:00:51.3]} 37... Kh8 {[%clk 0:00:17.7]} 38. Bc3 {[%clk 0:00:53.2]} 38...
Nxe6 {[%clk 0:00:17.6]} 39. Rxg6+ {[%clk 0:00:51]} 39... Nd4 {[%clk 0:00:18.4]}
40. Rd6 {[%clk 0:00:52.3]} 1-0

[Event "*** Titled Tuesday Blitz"]
[Site "Chess.com"]
[Date "2019.04.02"]
[Round "1"]
[White "Heineccius"]
[Black "1995Tiger"]
[Result "1-0"]
[WhiteElo "2511"]
[BlackElo "2020"]
[TimeControl "180+2"]
[EndTime "14:08:02 PDT"]
[Termination "Heineccius won on time"]

1. d4 {[%clk 0:03:01.3]} 1... Nf6 {[%clk 0:03:00.5]} 2. c4 {[%clk 0:03:01.5]}
2... c5 {[%clk 0:03:00.9]} 3. d5 {[%clk 0:03:01.9]} 3... e6 {[%clk 0:03:01.5]}
4. Nc3 {[%clk 0:03:02.3]} 4... exd5 {[%clk 0:03:02.8]} 5. cxd5 {[%clk
0:03:02.9]} 5... d6 {[%clk 0:03:04.4]} 6. e4 {[%clk 0:03:03.6]} 6... g6 {[%clk
0:03:05.5]} 7. f4 {[%clk 0:03:04.4]} 7... Bg7 {[%clk 0:03:05.6]} 8. Bb5+ {[%clk
0:03:05]} 8... Nfd7 {[%clk 0:03:07.2]} 9. a4 {[%clk 0:03:04]} 9... O-O {[%clk
0:03:08.2]} 10. Nf3 {[%clk 0:03:04.8]} 10... Na6 {[%clk 0:03:09.1]} 11. O-O
{[%clk 0:03:05.1]} 11... Nb4 {[%clk 0:03:07.9]} 12. Re1 {[%clk 0:02:59.7]} 12...
Nf6 {[%clk 0:03:01.8]} 13. h3 {[%clk 0:02:50.8]} 13... a6 {[%clk 0:02:49.7]} 14.
Bf1 {[%clk 0:02:45.3]} 14... Re8 {[%clk 0:02:48.6]} 15. Qb3 {[%clk 0:02:33.8]}
15... Rb8 {[%clk 0:02:46.3]} 16. Bd2 {[%clk 0:02:18]} 16... b6 {[%clk
0:02:14.6]} 17. Rad1 {[%clk 0:02:09.9]} 17... Bb7 {[%clk 0:02:14.5]} 18. Bc1
{[%clk 0:02:07]} 18... Nd7 {[%clk 0:02:10.9]} 19. Be3 {[%clk 0:01:56.5]} 19...
Qc7 {[%clk 0:02:04.4]} 20. Bf2 {[%clk 0:01:54.8]} 20... Rbc8 {[%clk 0:01:33.8]}
21. Bg3 {[%clk 0:01:51.4]} 21... Qb8 {[%clk 0:01:11.1]} 22. Bc4 {[%clk
0:01:20.4]} 22... Qa8 {[%clk 0:00:38.2]} 23. e5 {[%clk 0:00:38.6]} 23... Qb8
{[%clk 0:00:35.1]} 24. e6 {[%clk 0:00:37]} 24... Nf8 {[%clk 0:00:35.6]} 25. Ng5
{[%clk 0:00:37.4]} 25... f6 {[%clk 0:00:22.8]} 26. Nf7 {[%clk 0:00:35.9]} 26...
f5 {[%clk 0:00:21.3]} 27. Bh4 {[%clk 0:00:31]} 27... Qc7 {[%clk 0:00:21.7]} 28.
Re2 {[%clk 0:00:30]} 28... h6 {[%clk 0:00:22.1]} 29. Rde1 {[%clk 0:00:30.8]}
29... Nh7 {[%clk 0:00:23.4]} 30. Nd1 {[%clk 0:00:30.9]} 30... Nf8 {[%clk
0:00:21.3]} 31. g4 {[%clk 0:00:30.2]} 31... Nh7 {[%clk 0:00:22]} 32. gxf5 {[%clk
0:00:30.7]} 32... gxf5 {[%clk 0:00:23.4]} 33. Rg2 {[%clk 0:00:32]} 33... Nf8
{[%clk 0:00:20.1]} 34. Qg3 {[%clk 0:00:32.8]} 1-0